Cogmind - Beta 13 @@@ ROGUE MODE // 2024.03.24 @ 16:09:47 Player: Jezoensis Result: Destroyed by H-66 Slayer with Gauss Rifle Performance ------------- Evolutions (4) 2000 Regions Visited (16) 3200 Robots Destroyed (120) 600 Value Destroyed (3825) 3825 Prototype IDs (21) 420 Alien Tech Used (0) 0 Bonus (2734) 2734 TOTAL SCORE: 12779 Bonus ------- High Alert Combat Kills 438 Follower Combat Kills 2105 Network Hubs Disabled 400 Met Imprinter 300 Built Enhanced Grunts 300 Met R17 at Cetus 500 Friendly Fire -1309 Cogmind --------- Core Integrity 0/850 Matter 88/300 Energy 68/100 System Corruption 17% Temperature Cool (60) Movement Core (50) Location -6/Hub_04(d) Parts ------- > --- POWER (1) -------- (None) > --- PROPULSION (3) --- (None) > --- UTILITY (8) ------ (None) > --- WEAPON (3) ------- (None) > --- INVENTORY (5) ---- Advanced Power Amplifier Improved Sensor Array Seismic Detector Advanced KE Penetrator Phasing Sabre Peak State ------------ > --- POWER ------------ Quantum Reactor > --- PROPULSION ------- Improved Medium Treads Centrium Heavy Treads > --- UTILITY ---------- Huge Storage Unit Enhanced Optical Array Active Sensor Suite Advanced Targeting Computer Centrium Medium Armor Plating Centrium Medium Armor Plating > --- WEAPON ----------- Field Laser Advanced KE Penetrator Advanced KE Penetrator > --- INVENTORY -------- Medium Treads Centrium Heavy Treads Advanced Power Amplifier Advanced Heat Sink High-capacity Storage Unit High-capacity Matter Pod Improved Sensor Array Improved Sensor Array Advanced Signal Interpreter Seismic Detector Weapon Cycler Transmission Jammer High-powered Tractor Beam Field Laser Phase Cannon Advanced KE Penetrator Advanced KE Penetrator Advanced KE Penetrator Heavy Missile Launcher Phasing Sabre [Rating: 115] Favorites ----------- Power Improved Ion Engine Engine Improved Ion Engine Power Core Fission Core Reactor Quantum Reactor Propulsion Wheel Treads Medium Treads Wheel Wheel Utility High-capacity Storage Unit Device Structural Scanner Storage High-capacity Storage Unit Processor Visual Processing Unit Hackware Advanced Hacking Suite Protection Centrium Medium Armor Plating Weapon Assault Rifle Energy Gun Heavy Particle Gun Energy Cannon Phase Cannon Ballistic Gun Assault Rifle Launcher Heavy Missile Launcher Special Weapon Mining Laser Slashing Weapon Phasing Sabre Build | -11 -10 -10 -10 -9 -8 -8 -7 -7 -7 -7 -6 -6 -6 -6 -6 -6 ------- Run | Yrd Mat Min Exi Min Mat Sto Fac Low Low Zio Pro Fac Ext Cet Arc Hub Slots Evolved 8 | . . . . . 4 . 2 . . . . 2 . . . . Power . | . . . . . . . . . . . . . . . . . Propulsion 1 | . . . . . 1 . . . . . . . . . . . Utility 6 | . . . . . 2 . 2 . . . . 2 . . . . Weapon 1 | . . . . . 1 . . . . . . . . . . . Parts Attached 255 | 8 21 3 2 5 21 17 32 5 4 8 7 21 23 20 9 49 Power 14 | 1 1 . . 1 2 . 1 . . . . 1 . 1 . 6 Engine 7 | 1 1 . . 1 2 . 1 . . . . 1 . . . . Core 4 | . . . . . . . . . . . . . . 1 . 3 Reactor 3 | . . . . . . . . . . . . . . . . 3 Propulsion 33 | 2 9 . 1 2 3 2 4 . . . . 2 1 3 1 3 Treads 17 | . 4 . . 1 2 1 2 . . . . . 1 2 1 3 Leg . | . . . . . . . . . . . . . . . . . Wheel 16 | 2 5 . 1 1 1 1 2 . . . . 2 . 1 . . Hover . | . . . . . . . . . . . . . . . . . Flight . | . . . . . . . . . . . . . . . . . Utility 132 | 2 4 . 1 . 9 11 18 4 1 6 2 10 17 10 7 30 Device 88 | 1 1 . . . 9 8 15 3 . 2 2 6 16 1 7 17 Storage 7 | 1 2 . 1 . . . . . . . . . . 2 . 1 Processor 10 | . . . . . . . 3 . . 3 . 1 . 2 . 1 Hackware 4 | . 1 . . . . . . . 1 1 . . . . . 1 Protection 23 | . . . . . . 3 . 1 . . . 3 1 5 . 10 Artifact . | . . . . . . . . . . . . . . . . . Weapon 76 | 3 7 3 . 2 7 4 9 1 3 2 5 8 5 6 1 10 Energy Gun 21 | . . . . . 4 . 2 . . 1 3 2 2 2 . 5 Energy Cannon 1 | . . . . . . . . . . . . 1 . . . . Ballistic Gun 30 | 3 3 2 . 1 3 3 4 1 1 . . 1 1 3 . 4 Ballistic Cannon . | . . . . . . . . . . . . . . . . . Launcher 12 | . 1 1 . 1 . 1 2 . . . 2 1 2 . . 1 Special Weapon 3 | . 3 . . . . . . . . . . . . . . . Impact Weapon . | . . . . . . . . . . . . . . . . . Slashing Weapon 9 | . . . . . . . 1 . 2 1 . 3 . 1 1 . Piercing Weapon . | . . . . . . . . . . . . . . . . . Special Melee Weapon . | . . . . . . . . . . . . . . . . . Unidentified Prototypes 11 | . . . . . 2 1 . . . 2 . 1 . 4 . 1 Corrupted Parts 6 | . . . . . . . . . . . . . . 3 . 3 System Corruption 26 | . . . . . . . . . . . . . . 16 . 10 Parts Lost 37 | . 1 . . 2 1 1 3 . . . . . . 7 . 22 Power 7 | . 1 . . 1 . . 1 . . . . . . 1 . 3 Propulsion 7 | . . . . . . 1 1 . . . . . . 1 . 4 Utility 10 | . . . . . . . . . . . . . . 1 . 9 Weapon 13 | . . . . 1 1 . 1 . . . . . . 4 . 6 Highest Loss Streak 16 | . 1 . . 1 1 1 1 . . . . . . 6 . 16 To Critical Strikes 2 | . . . . . . . . . . . . . . 2 . . Average Slot Usage (%) 96 | . 99 100 100 97 99 99 99 100 100 99 100 95 93 89 88 87 Engine 6 | . 13 14 14 12 9 9 7 7 7 7 7 6 6 2 . . Core 1 | . . . . . . . . . . . . . . 3 6 5 Treads 6 | . . . . 1 8 9 7 7 7 7 7 6 6 6 12 13 Wheel 13 | . 27 28 28 26 18 17 14 15 15 15 15 8 6 5 . . Device 12 | . 3 . . . 17 16 14 14 15 14 15 19 18 6 7 14 Storage 8 | . 14 14 14 14 9 9 7 7 7 7 7 6 6 6 7 6 Processor 12 | . . . . . . . 15 15 15 15 15 20 20 26 26 16 Hackware 7 | . 10 14 14 14 9 9 7 7 7 7 7 6 6 6 6 7 Energy Gun 7 | . . . . . 8 9 9 9 7 7 16 11 13 9 6 7 Ballistic Gun 12 | . 26 27 28 27 18 17 12 12 13 7 2 4 6 7 6 7 Slashing Weapon 1 | . . . . . . . . . 1 6 2 1 . . 5 2 Naked Turns 1 | . . . . . . . . . . . . . . . . 1 Heaviest Build 115 | 13 47 28 47 47 61 60 61 58 58 61 68 91 87 115 115 110 Greatest Support 110 | 20 20 20 26 26 26 26 32 26 26 26 26 28 28 108 108 110 Greatest Overweight (x) 4 | . 2 1 1 2 2 2 3 2 2 2 2 3 3 4 4 . Average Overweight (x) 1 | . 1 1 1 1 1 2 1 2 2 2 2 2 2 3 . . Largest Inventory Capacity 25 | 8 20 15 20 20 20 20 20 20 20 20 20 20 20 25 25 25 Average Capacity 20 | 7 15 15 17 20 20 20 20 20 20 20 20 20 20 24 25 24 Most Carried 25 | 7 15 15 16 18 20 20 20 20 20 20 20 20 20 25 25 25 Average Carried 19 | 4 11 15 15 17 19 19 18 19 20 19 19 19 19 23 24 23 Final Capacity 25 | 8 15 15 20 20 20 20 20 20 20 20 20 20 20 25 25 5 Final Carried 25 | 7 15 15 16 17 20 20 20 20 20 20 20 20 20 25 25 5 Class Distribution -------------------- 32% | Scavenger-Skirmisher 17% | Mutant 13% | Scavenger-Assassin 5% | Infiltrator-Skirmisher 5% | Scavenger-Gunner 5% | Commander-Skirmisher 3% | Gunner 3% | Scavenger-Mutant 3% | Infiltrator-Assassin Dominant Class ---------------- Mutant | -10/Materials Mutant | -10/Mines Mutant | -10/Exiles Mutant | -9/Mines Scavenger-Skirmisher | -8/Materials Scavenger-Skirmisher | -8/Storage Scavenger-Skirmisher | -7/Factory Scavenger-Skirmisher | -7/Lower Caves Scavenger-Skirmisher | -7/Lower Caves Scavenger-Assassin | -7/Zion Scavenger-Skirmisher | -6/Proximity Caves Infiltrator-Assassin | -6/Factory Infiltrator-Skirmisher | -6/Extension Scavenger-Gunner | -6/Cetus Scavenger-Mutant | -6/Archives Scavenger-Gunner | -6/Hub_04(d) Resources | -11 -10 -10 -10 -9 -8 -8 -7 -7 -7 -7 -6 -6 -6 -6 -6 -6 ----------- Run | Yrd Mat Min Exi Min Mat Sto Fac Low Low Zio Pro Fac Ext Cet Arc Hub Matter Collected 4271 | 217 251 62 458 183 408 295 487 122 121 30 161 130 468 271 162 445 Remotely 508 | . . . . . . . 154 . . . . 45 207 . . 102 Salvage Created 4470 | 45 304 102 . 82 448 329 776 74 . . 91 209 290 212 292 1216 Parts 249 | 8 28 4 . 11 33 16 38 9 . . 3 2 9 9 24 55 Haulers Intercepted 5 | . . . . . 3 1 . . . . 1 . . . . . Recyclers Shooed 5 | . 3 . . . 1 . . . . . . 1 . . . . Parts Field Recycled . | . . . . . . . . . . . . . . . . . Retrieved Matter . | . . . . . . . . . . . . . . . . . Parts Self-Destructed 23 | . . . . . . . . 9 . . 14 . . . . . Prevented 3 | . . . . . . . . 1 . . 2 . . . . . Kills | -11 -10 -10 -10 -9 -8 -8 -7 -7 -7 -7 -6 -6 -6 -6 -6 -6 ------- Run | Yrd Mat Min Exi Min Mat Sto Fac Low Low Zio Pro Fac Ext Cet Arc Hub Combat Hostiles Destroyed 76 | . 6 7 . 5 3 9 12 3 . . . 4 4 2 . 21 Guns 46 | . 6 . . 4 3 5 7 3 . . . 2 3 1 . 12 AOE 27 | . . 7 . 1 . 4 5 . . . . 2 . . . 8 Classes Destroyed 19 | 1 6 1 . . 3 . 2 . . . . . . . . 6 Worker 9 | . 1 . . . . 1 3 . . . . 1 . . . 3 Builder 3 | . . . . . . . 2 . . . . . . . . 1 Tunneler 7 | 3 . 2 . 1 1 . . . . . . . . . . . Hauler 5 | . . . . . 3 1 . . . . 1 . . . . . Recycler 4 | . 1 1 . . . . 2 . . . . . . . . . Mechanic 1 | . . . . . . . . . . . . . . . . 1 Operator 11 | . 1 . . . . . . . . . . . 1 . 8 1 Watcher 9 | . 3 . . . 3 . 1 . . . . . 1 . . 1 Swarmer 15 | . 3 . . 5 . 4 . 3 . . . . . . . . Saboteur 2 | . . . . . . . . . . . . . . . . 2 Grunt 32 | . 3 . . . 1 4 9 . . . . 3 1 . . 11 Brawler 2 | . . . . . . . . . . . . . . . . 2 Duelist 1 | . . . . . . . . . . . . . . . . 1 Sentry 9 | . . . . . 2 1 . . . . . 1 3 . . 2 Specialist 2 | . . . . . . . . . . . . . . . . 2 Hunter 2 | . . . . . 1 . 1 . . . . . . . . . Programmer 2 | . . . . . . . 2 . . . . . . . . . Heavy 1 | . . . . . . . . . . . . . . . . 1 Cetus Guard 2 | . . . . . . . . . . . . . . 2 . . Assembled 7 | . . 7 . . . . . . . . . . . . . . Best Kill Streak 13 | 3 3 9 . 2 2 5 7 3 . . 1 3 2 1 3 13 Combat Bots Only 11 | . 3 7 . 2 1 4 3 3 . . . 3 2 1 . 11 Max Kills in Single Turn 5 | 1 1 3 . 1 2 2 5 2 . . 1 1 1 1 1 5 Gunslinging . | . . . . . . . . . . . . . . . . . Exploded 4 | . . 3 . 1 . 2 3 . . . . 1 . . . 4 Melee . | . . . . . . . . . . . . . . . . . Uniques/NPCs Destroyed 1 | . . . . . . . . . . . . . . 1 . . A7 (-6/Cetus) Combat | -11 -10 -10 -10 -9 -8 -8 -7 -7 -7 -7 -6 -6 -6 -6 -6 -6 -------- Run | Yrd Mat Min Exi Min Mat Sto Fac Low Low Zio Pro Fac Ext Cet Arc Hub Hostile Shots Fired 914 | . 28 3 . 34 24 38 68 17 . . 9 57 152 76 9 399 Missed 261 | . 10 3 . 9 8 12 20 5 . . 3 28 49 21 2 91 Damage Taken 8968 | . 205 37 . 279 212 336 633 64 . . 118 182 528 1125 170 5079 Core 1147 | . 49 . . 35 37 33 85 6 . . 38 20 91 114 . 639 Absorbed by Shields 664 | . . . . . 52 . 40 48 . . . 90 309 125 . . Reduced by Siege Mode 161 | . . . . . . . . . . . . . . . . 161 Ignored by Resistances 382 | . . . . . . 42 . 57 . . . 32 . 251 . . Regen/Repaired (Parts) 26 | . . . . . . . . . . 26 . . . . . . Core Remaining (%) 83 | 100 . . . 66 . 87 . . . . 81 . . . . . Volleys Fired 288 | 4 32 7 . 16 27 32 36 5 . . 8 14 22 34 14 37 Largest 3 | 2 2 2 . 2 3 3 3 3 . . 3 3 3 3 3 3 Hottest 191 | 40 100 40 . 40 99 109 147 114 . . 191 158 158 158 125 189 Shots Fired 686 | 8 61 9 . 31 81 80 98 15 . . 16 30 55 75 29 98 Gun 655 | 8 56 4 . 30 81 77 94 15 . . 16 23 53 75 29 94 Cannon 3 | . . . . . . . . . . . . 3 . . . . Launcher 25 | . 2 5 . 1 . 3 4 . . . . 4 2 . . 4 Special 3 | . 3 . . . . . . . . . . . . . . . Kinetic 367 | 8 56 4 . 30 54 48 53 10 . . . 8 18 20 15 43 Thermal 294 | . 3 . . . 27 29 41 5 . . 16 18 35 55 14 51 Explosive 25 | . 2 5 . 1 . 3 4 . . . . 4 2 . . 4 Electromagnetic . | . . . . . . . . . . . . . . . . . Robot Hit Streak 27 | 6 6 2 . 3 6 7 9 4 . . 5 10 26 27 7 23 Robot Miss Streak 6 | . 6 2 . 3 4 4 3 4 . . 1 1 2 2 3 2 Penetration Max 1 | . . . . . . . . . . . . 1 . . 1 1 Secondary Targets 7 | . . . . 1 . 1 . 1 . . . . 1 . . 3 Max Gunslinging Chain 1 | . . . . 1 . 1 . 1 . . . . 1 . . 1 Shots Hit Robots 462 | 6 33 3 . 13 41 45 65 6 . . 11 25 45 64 24 81 Core Hits 255 | 3 17 22 . 6 21 19 30 4 . . 2 9 19 18 12 73 Critical Kills 3 | . . . . . . . . . . . . . 1 . 1 1 Critical Parts Destroyed 7 | . . . . . . . . . . . . . 1 . 1 5 Critical Strikes 27 | . . . . . 3 3 1 1 . . . 1 6 2 2 8 Burn 14 | . . . . . 3 3 1 1 . . . . 4 2 . . Destroy 11 | . . . . . . . . . . . . . 2 . 2 7 Sever 2 | . . . . . . . . . . . . 1 . . . 1 Melee Attacks 23 | . . . . . . . 1 . 2 . . 4 . 1 8 7 Impact . | . . . . . . . . . . . . . . . . . Slashing 23 | . . . . . . . 1 . 2 . . 4 . 1 8 7 Piercing . | . . . . . . . . . . . . . . . . . Sneak Attacks 9 | . . . . . . . . . . . . 2 . . 6 1 Combat Hostiles . | . . . . . . . . . . . . . . . . . Follow-up Attacks . | . . . . . . . . . . . . . . . . . Damage Inflicted 13791 | 79 418 636 . 193 603 1127 2072 126 . . 238 943 1126 1309 1150 3771 Guns 8604 | 79 397 26 . 172 603 793 1190 126 . . 238 397 945 1309 419 1910 Cannons . | . . . . . . . . . . . . . . . . . Explosions 4163 | . 21 610 . 21 . 321 882 . . . . 391 181 . . 1736 Melee 1005 | . . . . . . . . . . . . 155 . . 731 119 Ramming 19 | . . . . . . 13 . . . . . . . . . 6 Kinetic 4299 | 79 397 26 . 172 379 453 569 86 . . . 157 327 269 238 1147 Thermal 4711 | . . . . . 224 340 1027 40 . . 238 240 618 1040 181 763 Explosive 3757 | . 21 610 . 21 . 321 476 . . . . 391 181 . . 1736 Electromagnetic . | . . . . . . . . . . . . . . . . . Impact . | . . . . . . . . . . . . . . . . . Slashing 1005 | . . . . . . . . . . . . 155 . . 731 119 Piercing . | . . . . . . . . . . . . . . . . . Highest Corruption 17 | . . . . . . . 2 2 2 2 . . . 16 16 17 Average Corruption 4 | . . . . . . . 1 2 2 2 . . . 14 10 4 Corruption Purged 23 | . . . . . . . . . . . . . . . 16 7 Corruption Blocked . | . . . . . . . . . . . . . . . . . Effects 43 | . . . . . . . 5 4 3 1 . . . 8 13 9 Message Errors 18 | . . . . . . . 1 2 . . . . . 5 6 4 Matter Fused 9 | . . . . . . . 1 1 1 1 . . . 1 3 1 Heat Flow Errors 8 | . . . . . . . 2 1 2 . . . . . 3 . Energy Discharges 2 | . . . . . . . 1 . . . . . . . . 1 Data Loss (minor) 3 | . . . . . . . . . . . . . . 1 1 1 Data Loss (major) 1 | . . . . . . . . . . . . . . . . 1 Misfires 2 | . . . . . . . . . . . . . . 1 . 1 Overload Shots . | . . . . . . . . . . . . . . . . . Overflow Damage 311 | . . 3 . . . 15 9 . . . . 54 . . 230 . Projectiles . | . . . . . . . . . . . . . . . . . Explosions 28 | . . 3 . . . 15 9 . . . . 1 . . . . Melee 283 | . . . . . . . . . . . . 53 . . 230 . Knockbacks . | . . . . . . . . . . . . . . . . . Impact . | . . . . . . . . . . . . . . . . . Kinetic . | . . . . . . . . . . . . . . . . . Secondary . | . . . . . . . . . . . . . . . . . Self-Inflicted Damage 196 | . . 37 . 43 . 6 . . . . . 11 . . . 99 Shots 4 | . . 1 . 1 . . . . . . . 1 . . . 1 Rammed 2 | . . . . . . 1 . . . . . . . . . 1 Targets Rammed 2 | . . . . . . 1 . . . . . . . . . 1 Kicked . | . . . . . . . . . . . . . . . . . Crushed . | . . . . . . . . . . . . . . . . . Highest Temperature 468 | 6 20 . . 2 84 173 144 225 241 460 178 165 147 222 269 468 Average Temperature 69 | 6 12 . . 2 24 45 46 107 109 249 58 57 59 79 54 127 Received Heat Transfer 2045 | . 87 . . 24 63 189 216 . . . 82 82 176 58 18 1050 Effects 1 | . . . . . . . . . . . . . . . . 1 Matter Decay 1 | . . . . . . . . . . . . . . . . 1 Siege Activations 5 | . . . . . . . . . . . . . . . . 5 Total Turns 61 | . . . . . . . . . . . . . . . . 61 Longest Duration 29 | . . . . . . . . . . . . . . . . 29 Robots Corrupted . | . . . . . . . . . . . . . . . . . Combat Hostiles . | . . . . . . . . . . . . . . . . . Parts Fried . | . . . . . . . . . . . . . . . . . Impact Corruptions . | . . . . . . . . . . . . . . . . . Robots Melted 3 | . . . . . . . . . . . . . 1 1 . 1 Combat Hostiles 3 | . . . . . . . . . . . . . 1 1 . 1 Parts Melted 15 | . . . . . 2 1 1 . . . . . 5 2 . 4 Heat Transferred 9439 | . . . . . 777 851 1447 148 . . 407 444 1388 2053 333 1591 Parts Sabotaged . | . . . . . . . . . . . . . . . . . Parts Stolen . | . . . . . . . . . . . . . . . . . Parts Stripped . | . . . . . . . . . . . . . . . . . Power Chain Reactions . | . . . . . . . . . . . . . . . . . Alert | -11 -10 -10 -10 -9 -8 -8 -7 -7 -7 -7 -6 -6 -6 -6 -6 -6 ------- Run | Yrd Mat Min Exi Min Mat Sto Fac Low Low Zio Pro Fac Ext Cet Arc Hub Peak Influence 1088 | 15 202 74 . 163 239 464 562 . . . . 124 309 563 480 1088 Initial 210 | . 9 35 . . 63 7 210 . . . . 96 26 101 145 168 Average 223 | 3 90 54 . 39 107 174 377 . . . . 66 144 251 415 549 Maximum Alert Level 3 | . 1 . . . 1 2 2 . . . . . 1 2 2 3 Low Security (%) 58 | 100 94 100 . 100 79 55 4 . . . . 100 80 50 10 5 Level 1 18 | . 5 . . . 20 36 46 . . . . . 19 38 5 14 Level 2 20 | . . . . . . 8 48 . . . . . . 10 84 64 Level 3 1 | . . . . . . . . . . . . . . . . 14 Level 4 . | . . . . . . . . . . . . . . . . . Level 5 . | . . . . . . . . . . . . . . . . . High Security . | . . . . . . . . . . . . . . . . . Max Security . | . . . . . . . . . . . . . . . . . Squads Dispatched 34 | . 5 . . . 3 2 13 . . . . 2 1 . . 8 Investigation 15 | . 4 . . . 1 1 8 . . . . . . . . 1 Extermination 1 | . . . . . . . 1 . . . . . . . . . Reinforcement 11 | . 1 . . . 2 1 1 . . . . 1 1 . . 4 Assault 3 | . . . . . . . . . . . . . . . . 3 Garrison 4 | . . . . . . . 3 . . . . 1 . . . . Intercept . | . . . . . . . . . . . . . . . . . Searches Triggered . | . . . . . . . . . . . . . . . . . Construction Impeded 2 | . . . . . . . . . . . . . 1 . . 1 Haulers Reinforced . | . . . . . . . . . . . . . . . . . Active Scanning Responses 1 | . . . . . . . . . . . . . . . . 1 Cargo Convoy Interrupts . | . . . . . . . . . . . . . . . . . Stealth | -11 -10 -10 -10 -9 -8 -8 -7 -7 -7 -7 -6 -6 -6 -6 -6 -6 --------- Run | Yrd Mat Min Exi Min Mat Sto Fac Low Low Zio Pro Fac Ext Cet Arc Hub Distress Signals 12 | . 1 . . . 2 1 2 . . . . . 2 2 . 2 Communications Jammed 21 | . . . . . . . . . . . . . 10 . . 11 Distress Signals 21 | . . . . . . . . . . . . . 10 . . 11 Times Spotted 198 | . 20 14 . 8 9 14 20 3 . . 5 11 15 16 12 51 Peak Tracking Total 16 | . 7 13 . 4 3 5 4 3 . . 4 4 3 6 2 16 Tactical Retreats 6 | . 1 . . 2 . 1 1 . . . . . . . . 1 Traps | -11 -10 -10 -10 -9 -8 -8 -7 -7 -7 -7 -6 -6 -6 -6 -6 -6 ------- Run | Yrd Mat Min Exi Min Mat Sto Fac Low Low Zio Pro Fac Ext Cet Arc Hub Traps Triggered 4 | . 1 . . . 1 . 1 . . . . . . . . 1 Indirectly . | . . . . . . . . . . . . . . . . . Trap Hack Attempts . | . . . . . . . . . . . . . . . . . Triggered . | . . . . . . . . . . . . . . . . . Disarmed . | . . . . . . . . . . . . . . . . . Reprogrammed . | . . . . . . . . . . . . . . . . . Reused . | . . . . . . . . . . . . . . . . . Traps Extracted . | . . . . . . . . . . . . . . . . . Installed . | . . . . . . . . . . . . . . . . . Triggered 1 | . . . . . . . . 1 . . . . . . . . Machines | -11 -10 -10 -10 -9 -8 -8 -7 -7 -7 -7 -6 -6 -6 -6 -6 -6 ---------- Run | Yrd Mat Min Exi Min Mat Sto Fac Low Low Zio Pro Fac Ext Cet Arc Hub Machines Disabled 16 | . . . . . . 2 6 . . . . . . . 3 5 Max in Single Turn 4 | . . . . . . 1 3 . . . . . . . 1 4 Garrison Access 1 | . . . . . 1 . . . . . . . . . . . Network Hub 2 | . . . . . . . . . . . . . . . . 2 Machines Repaired . | . . . . . . . . . . . . . . . . . Machines Dismantled . | . . . . . . . . . . . . . . . . . Machines Sabotaged . | . . . . . . . . . . . . . . . . . Overloaded Fab Kills . | . . . . . . . . . . . . . . . . . Hacking | -11 -10 -10 -10 -9 -8 -8 -7 -7 -7 -7 -6 -6 -6 -6 -6 -6 --------- Run | Yrd Mat Min Exi Min Mat Sto Fac Low Low Zio Pro Fac Ext Cet Arc Hub Machines Accessed 41 | . 9 . . 1 6 8 9 . 1 . . 1 2 1 . 3 Terminals 33 | . 7 . . . 5 8 6 . . . . 1 2 1 . 3 Fabricators 1 | . . . . . . . 1 . . . . . . . . . Repair Stations . | . . . . . . . . . . . . . . . . . Recycling Units 4 | . 2 . . . . . 2 . . . . . . . . . Scanalyzers . | . . . . . . . . . . . . . . . . . Garrison Access 1 | . . . . . 1 . . . . . . . . . . . Total Hacks 116 | . 31 . . 1 17 17 23 . 1 . . 4 4 2 . 16 Successful 64 | . 19 . . 1 11 10 11 . 1 . . 2 2 . . 7 Failed 51 | . 11 . . . 6 7 12 . . . . 2 2 2 . 9 Catastrophic 4 | . . . . . . . 2 . . . . . . . . 2 Database Lockouts 1 | . 1 . . . . . . . . . . . . . . . Manual 69 | . 15 . . . 11 7 15 . . . . 3 2 1 . 15 Terminals 104 | . 28 . . . 16 17 17 . . . . 4 4 2 . 16 Fabricators 4 | . . . . . . . 4 . . . . . . . . . Repair Stations . | . . . . . . . . . . . . . . . . . Recycling Units 5 | . 3 . . . . . 2 . . . . . . . . . Scanalyzers . | . . . . . . . . . . . . . . . . . Garrison Access 1 | . . . . . 1 . . . . . . . . . . . Terminal Hacks 34 | . 12 . . 1 6 6 4 . 1 . . . 1 . . 3 Robot Schematic 1 | . . . . . . . 1 . . . . . . . . . Robot Analysis 4 | . 3 . . . . . 1 . . . . . . . . . Prototype ID Bank 6 | . 4 . . . 1 . 1 . . . . . . . . . Open Door 6 | . . . . 1 . 3 . . 1 . . . 1 . . . Branch Access Points 1 | . . . . . 1 . . . . . . . . . . . Terminal Index 5 | . 1 . . . 1 1 1 . . . . . . . . 1 Recycling Unit Index 1 | . 1 . . . . . . . . . . . . . . . Unreport Threat 3 | . 2 . . . 1 . . . . . . . . . . . Locate Traps 5 | . . . . . 2 2 . . . . . . . . . 1 Recall Reinforcements 1 | . . . . . . . . . . . . . . . . 1 Hauler Manifests 1 | . 1 . . . . . . . . . . . . . . . Fabricator Hacks 1 | . . . . . . . 1 . . . . . . . . . Network Status 1 | . . . . . . . 1 . . . . . . . . . Repair Station Hacks . | . . . . . . . . . . . . . . . . . Recycling Unit Hacks 1 | . 1 . . . . . . . . . . . . . . . Retrieve Matter 1 | . 1 . . . . . . . . . . . . . . . Scanalyzer . | . . . . . . . . . . . . . . . . . Garrison Access Hacks 1 | . . . . . 1 . . . . . . . . . . . Seal Access 1 | . . . . . 1 . . . . . . . . . . . Unauthorized Hacks 27 | . 6 . . . 4 4 6 . . . . 2 1 . . 4 Terminals 22 | . 4 . . . 4 4 3 . . . . 2 1 . . 4 Track 5 | . 1 . . . 1 1 . . . . . . . . . 2 Botnet 12 | . 2 . . . 2 2 2 . . . . 1 1 . . 2 Operators 5 | . 1 . . . 1 1 1 . . . . 1 . . . . Fabricators 1 | . . . . . . . 1 . . . . . . . . . Fabnet 1 | . . . . . . . 1 . . . . . . . . . Repair Stations . | . . . . . . . . . . . . . . . . . Recycling Units 4 | . 2 . . . . . 2 . . . . . . . . . Tunnel 4 | . 2 . . . . . 2 . . . . . . . . . Scanalyzers . | . . . . . . . . . . . . . . . . . Garrison Access . | . . . . . . . . . . . . . . . . . Data Cores Recovered 1 | . . . . . . . . . . . . . 1 . . . Used . | . . . . . . . . . . . . . . . . . Hacking Detections 31 | . 6 . . . 5 7 7 . . . . 1 1 1 . 3 Full Trace Events 7 | . 1 . . . . 1 5 . . . . . . . . . Feedback Events . | . . . . . . . . . . . . . . . . . Feedback Blocked . | . . . . . . . . . . . . . . . . . Robot Schematics Acquired 3 | . . . . . . . 1 . . 2 . . . . . . Robots Built . | . . . . . . . . . . . . . . . . . Authchips . | . . . . . . . . . . . . . . . . . Time . | . . . . . . . . . . . . . . . . . Total Robot Build Rating . | . . . . . . . . . . . . . . . . . Part Schematics Acquired 15 | . . . . . . . . . . 15 . . . . . . Parts Built . | . . . . . . . . . . . . . . . . . Authchips . | . . . . . . . . . . . . . . . . . Time . | . . . . . . . . . . . . . . . . . Total Part Build Rating . | . . . . . . . . . . . . . . . . . Parts Repaired . | . . . . . . . . . . . . . . . . . Time . | . . . . . . . . . . . . . . . . . Parts Recycled . | . . . . . . . . . . . . . . . . . Recycled Matter . | . . . . . . . . . . . . . . . . . Retrieved Matter 95 | . 95 . . . . . . . . . . . . . . . Retrieved Components . | . . . . . . . . . . . . . . . . . Parts Scanalyzed . | . . . . . . . . . . . . . . . . . Part Schematics Acquired . | . . . . . . . . . . . . . . . . . Parts Damaged . | . . . . . . . . . . . . . . . . . Bothacking | -11 -10 -10 -10 -9 -8 -8 -7 -7 -7 -7 -6 -6 -6 -6 -6 -6 ------------ Run | Yrd Mat Min Exi Min Mat Sto Fac Low Low Zio Pro Fac Ext Cet Arc Hub Used RIF Installer . | . . . . . . . . . . . . . . . . . Robots Hacked 4 | . . . . . . . . . . . 1 . 1 . 1 1 Non-combat . | . . . . . . . . . . . . . . . . . Combat 4 | . . . . . . . . . . . 1 . 1 . 1 1 Robot Hacks Applied . | . . . . . . . . . . . . . . . . . Relay Couplers Released . | . . . . . . . . . . . . . . . . . Fabnet Peak Effective % 3 | . . . . . . . . . . . 3 3 3 3 3 3 Autooverrided 4 | . . . . . . . . . . . 1 . 1 . 1 1 Robots Rewired 6 | . . . . . . . . . . . . . 6 . . . Allies Hacked . | . . . . . . . . . . . . . . . . . Hacks Repelled . | . . . . . . . . . . . . . . . . . Allies | -11 -10 -10 -10 -9 -8 -8 -7 -7 -7 -7 -6 -6 -6 -6 -6 -6 -------- Run | Yrd Mat Min Exi Min Mat Sto Fac Low Low Zio Pro Fac Ext Cet Arc Hub Total Allies 36 | . . 5 . . . 10 . . . 5 1 . 8 5 1 1 Largest Group 10 | . . 5 4 3 2 10 7 . . 5 5 4 8 6 6 6 Highest-Rated Group 624 | . . 89 70 39 23 173 125 . . 104 137 90 385 624 529 565 Highest-Rated Ally 159 | . . 31 31 16 15 29 29 . . 25 47 25 159 144 96 96 Total Orders 6 | . . . . . . . . . . . . . . 6 . . STAY 4 | . . . . . . . . . . . . . . 4 . . FOLLOW 2 | . . . . . . . . . . . . . . 2 . . Ally Attacks 367 | . . 24 . 11 3 33 18 . . . 24 2 96 63 39 54 Total Damage 9840 | . . 282 . 121 29 445 226 . . . 675 33 2391 1930 1551 2157 Kills 53 | . . 1 . 1 . 6 1 . . . 6 . 10 13 4 11 Allies Corrupted . | . . . . . . . . . . . . . . . . . Allies Melted . | . . . . . . . . . . . . . . . . . Intel | -11 -10 -10 -10 -9 -8 -8 -7 -7 -7 -7 -6 -6 -6 -6 -6 -6 ------- Run | Yrd Mat Min Exi Min Mat Sto Fac Low Low Zio Pro Fac Ext Cet Arc Hub Robot Analysis Total 4 | . 3 . . . . . 1 . . . . . . . . . Derelict Logs Recovered 5 | . . 1 . . . . . 1 1 1 1 . . . . . Drone Launches . | . . . . . . . . . . . . . . . . . Drone Recoveries . | . . . . . . . . . . . . . . . . . Exploration | -11 -10 -10 -10 -9 -8 -8 -7 -7 -7 -7 -6 -6 -6 -6 -6 -6 ------------- Run | Yrd Mat Min Exi Min Mat Sto Fac Low Low Zio Pro Fac Ext Cet Arc Hub Turns Passed 8138 | 69 593 252 157 377 549 516 721 321 388 826 348 619 784 446 380 792 Spaces Moved 5332 | 53 463 226 143 302 336 320 459 241 314 659 228 419 439 197 184 349 Core 15 | 14 . . . . . . . . . . . . . . . 1 Treads 527 | . . . . . . . . . . . . . . 1 178 348 Legs . | . . . . . . . . . . . . . . . . . Wheels 4790 | 39 463 226 143 302 336 320 459 241 314 659 228 419 439 196 6 . Hover . | . . . . . . . . . . . . . . . . . Flight . | . . . . . . . . . . . . . . . . . Fastest Speed 50 | 50 80 95 95 105 105 120 115 120 120 120 120 120 130 145 160 50 Average Speed 121 | 72 96 95 99 105 118 120 119 120 120 120 120 126 131 151 160 159 Slowest Speed 160 | 80 110 95 105 130 120 120 145 120 120 120 120 145 145 160 160 160 Overloaded Moves . | . . . . . . . . . . . . . . . . . Propulsion Burnouts . | . . . . . . . . . . . . . . . . . Robots Hopped . | . . . . . . . . . . . . . . . . . Cave-ins Triggered 1 | . . . . . . . . . . . . . . . . 1 Exploration Rate (%) 51 | 3 70 44 51 72 39 63 16 47 61 82 50 15 66 57 88 58 Regions Visited 16 Branch Regions 12 Pre-discovered Areas 6 | . 2 1 . . . . 2 . . 1 . . . . . . Known Exits Taken 10 | . . . . . 1 . 1 1 1 1 1 1 1 1 1 . Unknown Exits Taken 6 | 1 1 1 1 1 . 1 . . . . . . . . . . Scrap Searched 8 | . . . . 3 . . . 2 1 1 1 . . . . . Spaces Dug 15 | . 3 . . . . . 1 . 2 . . 4 . . . 5 Terrain Destroyed 388 | . 13 31 . 7 . 32 27 . 2 . . 32 34 6 5 199 Melee 10 | . . . . . . . 1 . 2 . . 2 . . . 5 Projectile 33 | . 3 . . . . . . . . . . 4 . 6 5 15 AOE 345 | . 10 31 . 7 . 32 26 . . . . 26 34 . . 179 Terrain Rammed . | . . . . . . . . . . . . . . . . . Walls Destroyed . | . . . . . . . . . . . . . . . . . Machines Disabled . | . . . . . . . . . . . . . . . . . Actions | -11 -10 -10 -10 -9 -8 -8 -7 -7 -7 -7 -6 -6 -6 -6 -6 -6 --------- Run | Yrd Mat Min Exi Min Mat Sto Fac Low Low Zio Pro Fac Ext Cet Arc Hub Total 6344 | 72 535 252 157 327 430 388 553 261 319 695 286 471 593 281 227 497 Wait 205 | . 1 17 10 3 4 7 5 9 . 20 38 3 43 8 9 28 Move 5315 | 52 462 225 142 301 335 319 458 240 313 658 227 418 438 196 183 348 Hop . | . . . . . . . . . . . . . . . . . Pick Up 88 | 8 11 . 2 2 20 4 10 . . 1 3 4 3 11 1 8 Fast Attach 48 | 5 3 . . 1 7 3 3 1 . 6 . 3 . 7 4 5 Attach 50 | 2 . . 1 1 7 2 6 . . . 1 3 . 6 1 20 Detach 25 | . 2 . . . 3 . 1 1 . 4 . . . 3 1 10 Swap 157 | 1 18 3 1 3 7 12 23 4 4 2 6 15 23 7 4 24 Drop 83 | . 6 . 1 . 20 8 10 1 . 4 3 7 5 8 2 8 Fire 288 | 4 32 7 . 16 27 32 36 5 . . 8 14 22 34 14 37 Melee 23 | . . . . . . . 1 . 2 . . 4 . 1 8 7 Ram 2 | . . . . . . 1 . . . . . . . . . 1 Kick . | . . . . . . . . . . . . . . . . . Crush . | . . . . . . . . . . . . . . . . . Escape Stasis 1 | . . . . . . . . . . . . . . . . 1 Rewire 59 | . . . . . . . . . . . . . 59 . . . Trap . | . . . . . . . . . . . . . . . . . Miscellaneous . | . . . . . . . . . . . . . . . . . Route ------- -11/Scrapyard -10/Materials (discovered 4 exits: [*Mat x3] / [*Min]) -10/Mines -10/Exiles (discovered 2 exits: *Min x2) -9/Mines -8/Materials (discovered 3 exits: *Fac / *Sto x2) -8/Storage -7/Factory -7/Lower Caves -7/Lower Caves -7/Zion -6/Proximity Caves -6/Factory -6/Extension (discovered 2 exits: [*Fac] / *Cet) -6/Cetus (discovered 2 exits: [*Fac] / *Arc) -6/Archives (discovered 3 exits: [*Fac] / *Hub x2) -6/Hub_04(d) (discovered 2 exits: [*Fac x2]) History --------- Turn | Location | Event 29 | -11/Scrapyard | Discovered new exit (range 12) 70 | -11/Scrapyard | Entered Materials 163 | -10/Materials | Discovered new exit (range 6) 212 | -10/Materials | Discovered new exit (range 11) 230 | -10/Materials | Discovered new exit (range 13) 345 | -10/Materials | Build established: Mutant 511 | -10/Materials | Discovered new exit (range 16) 577 | -10/Materials | Central database locked down 663 | -10/Materials | Entered Mines 717 | -10/Mines | Assisted by bots powering up and referring to "LRC-V3" 796 | -10/Mines | Assembled infested the area 819 | -10/Mines | Met 8R-AWN 833 | -10/Mines | Destroyed 7 combat bots 892 | -10/Mines | Discovered new exit (range 5) 915 | -10/Mines | Entered Exiles 915 | -10/Exiles | Accompanied by 4 allies 928 | -10/Exiles | Discovered new exit (range 15) 941 | -10/Exiles | Welcomed by 8R-AWN 945 | -10/Exiles | Led the pair of lost Derelicts to a safe place 954 | -10/Exiles | Met EX-HEX 1013 | -10/Exiles | Met EX-DEC 1054 | -10/Exiles | Discovered new exit (range 10) 1072 | -10/Exiles | Entered Mines 1072 | -9/Mines | Accompanied by 3 allies 1278 | -9/Mines | Found the Drone Emporium 1442 | -9/Mines | Discovered new exit (range 5) 1449 | -9/Mines | Entered Materials 1449 | -8/Materials | Accompanied by 2 allies 1449 | -8/Materials | Evolved 4 slots: Propulsion x1, Utility x2, Weapon x1 1455 | -8/Materials | Discovered new exit (range 14) 1796 | -8/Materials | Identified exit to Storage 1847 | -8/Materials | Discovered new exit (range 8) 1896 | -8/Materials | Build established: Scavenger-Skirmisher 1898 | -8/Materials | Met 7R-MNS 1998 | -8/Materials | Entered Storage 2311 | -8/Storage | Assisted by bots powering up and referring to "LRC-V3" 2497 | -8/Storage | Discovered new exit (range 9) 2514 | -8/Storage | Entered Factory 2514 | -7/Factory | Accompanied by 7 allies 2514 | -7/Factory | Evolved 2 slots: Utility x2 2634 | -7/Factory | Lost 7 allies 2947 | -7/Factory | Garrison activated, responded to threat 3225 | -7/Factory | Discovered new exit (range 5) 3229 | -7/Factory | Identified exit to Lower Caves 3235 | -7/Factory | Entered Lower Caves 3247 | -7/Lower Caves | Identified exit to Lower Caves 3355 | -7/Lower Caves | Encountered a Warlord checkpoint 3556 | -7/Lower Caves | Entered another Lower Caves area 3679 | -7/Lower Caves | Encountered a Warlord checkpoint 3795 | -7/Lower Caves | Learned location of 1 exit from Factory 3929 | -7/Lower Caves | Discovered new exit (range 13) 3942 | -7/Lower Caves | Identified exit to Zion 3944 | -7/Lower Caves | Entered Zion 3984 | -7/Zion | System corruption cleaned by Quarantine Array 4172 | -7/Zion | Build established: Scavenger-Assassin 4292 | -7/Zion | Gained Derelict followers 4411 | -7/Zion | Found Prototype Processor 4411 | -7/Zion | Identified Exp. Melee Analysis Suite 4417 | -7/Zion | Found Prototype Processor 4417 | -7/Zion | Identified Exp. Targeting Computer 4564 | -7/Zion | Given the Hacking Drone Bay 4738 | -7/Zion | Discovered new exit (range 12) 4750 | -7/Zion | Identified exit to Proximity Caves 4770 | -7/Zion | Entered Proximity Caves 4770 | -6/Proximity Caves | Accompanied by 5 allies 5064 | -6/Proximity Caves | Discovered new exit (range 13) 5085 | -6/Proximity Caves | Identified exit to Factory 5118 | -6/Proximity Caves | Entered Factory 5118 | -6/Factory | Accompanied by 4 allies 5118 | -6/Factory | Evolved 2 slots: Utility x2 5119 | -6/Factory | Identified exit to Extension 5208 | -6/Factory | Build established: Scavenger-Skirmisher 5723 | -6/Factory | Garrison activated, responded to threat 5737 | -6/Factory | Entered Extension 5971 | -6/Extension | Rescued A7 6287 | -6/Extension | Spotted B-75 Beast 6305 | -6/Extension | Local machine network offline 6309 | -6/Extension | Spotted B-75 Beast 6313 | -6/Extension | Allies destroyed B-75 Beast 6334 | -6/Extension | Allies destroyed B-75 Beast 6407 | -6/Extension | Lost 3 allies 6497 | -6/Extension | Discovered new exit (range 18) 6497 | -6/Extension | Discovered new exit (range 18) 6519 | -6/Extension | Identified exit to Cetus 6521 | -6/Extension | Entered Cetus 6521 | -6/Cetus | Accompanied by 3 allies (A7) 6526 | -6/Cetus | Acquired a Cetus Manufacturing Module code from A7 6545 | -6/Cetus | Spotted Cetus Guard 6545 | -6/Cetus | Spotted Cetus Guard 6547 | -6/Cetus | Spotted Cetus Guard 6549 | -6/Cetus | Spotted Cetus Guard 6557 | -6/Cetus | Allies destroyed Cetus Guard 6559 | -6/Cetus | Allies destroyed Cetus Guard 6567 | -6/Cetus | Allies destroyed Cetus Guard 6569 | -6/Cetus | Destroyed Cetus Guard 6650 | -6/Cetus | Started Cetus Manufacturing Module 6675 | -6/Cetus | Manufactured an Enhanced Grunt 6680 | -6/Cetus | Discovered new exit (range 17) 6700 | -6/Cetus | Manufactured an Enhanced Grunt 6708 | -6/Cetus | Spotted Cetus Guard 6708 | -6/Cetus | Spotted Cetus Guard 6711 | -6/Cetus | Spotted Cetus Guard 6725 | -6/Cetus | Manufactured an Enhanced Grunt 6729 | -6/Cetus | Allies destroyed Cetus Guard 6748 | -6/Cetus | Destroyed Cetus Guard 6750 | -6/Cetus | Manufactured an Enhanced Grunt 6757 | -6/Cetus | Allies destroyed Cetus Guard 6757 | -6/Cetus | Spotted Cetus Guard 6774 | -6/Cetus | Allies destroyed Cetus Guard 6775 | -6/Cetus | Manufactured an Enhanced Grunt 6781 | -6/Cetus | Discovered new exit (range 17) 6787 | -6/Cetus | Lost 6 parts (1p1n1u3w) 6795 | -6/Cetus | Met Revision 17 6813 | -6/Cetus | System corruption reached 10% 6939 | -6/Cetus | Identified exit to Archives 6952 | -6/Cetus | Murdered A7 6952 | -6/Cetus | Destroyed A7 6957 | -6/Cetus | Extracted ID and sensor layout for unrecognized location from A7's data core 6967 | -6/Cetus | Entered Archives 6967 | -6/Archives | Accompanied by 5 allies 7010 | -6/Archives | Discovered new exit (range 22) 7074 | -6/Archives | Discovered new exit (range 21) 7100 | -6/Archives | Discovered new exit (range 22) 7344 | -6/Archives | Identified exit to Hub_04(d) 7347 | -6/Archives | Entered Hub_04(d) 7347 | -6/Hub_04(d) | Accompanied by 5 allies 7538 | -6/Hub_04(d) | Spotted B-75 Beast 7543 | -6/Hub_04(d) | Local machine network offline 7590 | -6/Hub_04(d) | Discovered new exit (range 19) 7617 | -6/Hub_04(d) | Lost 4 allies 7693 | -6/Hub_04(d) | Crushed by falling debris 7724 | -6/Hub_04(d) | Lost 4 parts (1p3u) 7928 | -6/Hub_04(d) | Discovered new exit (range 10) 7930 | -6/Hub_04(d) | Found Prototype Device 7941 | -6/Hub_04(d) | Network Hub disabled 7944 | -6/Hub_04(d) | Identified Active Sensor Suite 8022 | -6/Hub_04(d) | Network Hub disabled 8047 | -6/Hub_04(d) | First assault squad dispatched 8085 | -6/Hub_04(d) | Core integrity fell below 50% 8125 | -6/Hub_04(d) | Core integrity fell below 20% 8138 | -6/Hub_04(d) | Released all parts (3) 8139 | -6/Hub_04(d) | Destroyed by H-66 Slayer with Gauss Rifle Last Messages --------------- 08126_ Field Laser destroyed. 08126_ Penetrated by Slug. 08128_ Ended siege mode. 08129_ Penetrated by Slug. 08129_ Field Laser destroyed. 08130_ Overheating: Matter decay (-26). 08130_ Penetrated by Slug. 08131_ The unstable cave ceiling collapses. 08132_ Slug penetrates Earth. 08133_ %Y KVWJ:JAN5HXI/LJB 08134_ Quantum Reactor destroyed. 08134_ Med. Treads destroyed. 08136_ Slug penetrates Door. 08136_ Penetrated by Slug. 08137_ The unstable cave ceiling collapses. 08137_ Centrium Heavy Treads destroyed. 08138_ Released Adv. Targeting Computer. 08138_ Released Weapon Cycler. 08138_ Released Hcp. Storage Unit. 08138_ Slammed into G-67 Veteran. Map ----- +----------------------------------------------------+ | # ?????????????? ??????????????????????????? | | # ??????????????? #?????????????????????????? | | # ??????????????? #?????????????????????????? | | # ??????????????? #?????????????????????????? | | # ??????????????? #?????????????????????????? | | """""#??????????????? #?????????????????????????? | | #??????????????# ##????????????????????????? | | #?????????????# #????????????????????????? | | #?????????????? * #????????????????????????? | | #?????????????? =% +????????????????????????? | | #?????????????? ! ?????????????????????????? | | #??????????????" #?????????????????????????? | | #??????????????# #?????????????????????????? | | ###########???##% ##########???####+#???????? | | """""# #####; ?? #???????? | | " # h######? #???? #???????? | | # * # #;;;;;;;;;;;;## #??## #???? ??? | | # + #; = h ; " ### # #? ?!???? | | # # #;* =Y ;## # # # !????? | | #" "# #; # " !????? | | " "# #; = # " ????? | | " "# #; !%% " % ???? | | " """#########; *=% =%% [ " ????? | | " " ?????# ; %! gkg * =%% "####???? | | """ """"?????# ; = g#gg% ??? | | !?????# ;;;;;;;;;@!! [[ %% ? | | ????# ; !]!!! =%% ####"""""""+# | | ]????# ; !!![ % = # " | | "???# ; # " " | | "???# ; # # " " | | =" ??# ; + g] u# !" " | | " ?# ; /;u + < " | | " ?# ; ###### = # ! " " | | / " ## ; # # ## = # " " | | " ## ; # ## %==" " " | | """""""""" ?# ; ; " %=;""""""""""" | | ???# ; ; """ ""############ | | ????# ";;;;;;;;;;;;"###"#=%" | | #########????# " ??##[%# | | ?????????????# " ??# # | | ?????????????# " ?# + | | ?????????????# " ?# # | | ?????????????# " ## [##########+### | | ?????????????# """"""""""""""""## =!%######### ### | | ?????????????## " "#### !%! ! =*! | | ??????????????#######" [%!| =### | | ????????????????????#""##+##"#"## ######## ##?? | | ???????????????????? ????? ##+###?###??#+#??? | | ????????????????????" ?????" ! ? ??????? ??? | | ????????????????????" ?????" ? ??????? ??? | +----------------------------------------------------+ Best States ------------- Heat Dissipation 75 Energy Generation 25 Energy Capacity 810 Matter Stores 300 Matter Capacity 300 Sight Range 22 Robot Scan Range 20 Terrain Scan Range 16 Terrain Scan Density 10 Jamming Range 12 Power Amplification 30 Armor Coverage 900 Resistance: KI 30 Resistance: TH 10 Resistance: EM 20 Weapon Cycling 15 Evasion (%) 50 Targeting Accuracy 8 Recoil Reduction 3 Salvage Targeting 2 Offensive Hacking 14 Defensive Hacking 12 Item Schematics ----------------- Imp. Trap Extractor | -7/Zion | Archive Hvy. Plasma Cannon | -7/Zion | Archive Adv. Melee Analysis Suite | -7/Zion | Archive Power Maul | -7/Zion | Archive Adv. Signal Interpreter | -7/Zion | Archive Imp. Shock Absorption System | -7/Zion | Archive Hrd. Heavy Armor Plating | -7/Zion | Archive Weapon Cycler | -7/Zion | Archive Imp. Medium Treads | -7/Zion | Archive Imp. Carbon-fiber Leg | -7/Zion | Archive Imp. Hacking Suite | -7/Zion | Archive Mak. Shrapnel Gun | -7/Zion | Archive Imp. Target Analyzer | -7/Zion | Archive Imp. Titanium Leg | -7/Zion | Archive Field Propulsion Drive | -7/Zion | Archive Robot Schematics ------------------ S-27 Virus | -7/Factory | Hacked K-01 Serf | -7/Zion | Archive A-02 Transporter | -7/Zion | Archive Fabricated ------------ Nothing Alien Tech Used ----------------- None Achievements -------------- None Challenges ------------ None Game ------ Seed ImprinterSmallLog Manual? 0 Play Time 01:37:35 Cumulative 1074.8 hours Start 2024.03.24 @ 13:52:33 End 2024.03.24 @ 16:09:47 Sessions 5 Manual Loads 0 Difficulty Rogue Special Mode None Game No. 538 Rogue 411 Adventurer 125 Explorer 2 Win Type - Total 129 Types 100/10/9/3/3/0/0/2/2 Lore% 82 Gallery% 90 Achievement% 84 Wizard Run 0 Options --------- Layout 0 ASCII 0 Keyboard 1 Movement Numpad Keybinds 0 Fullscreen 1 Font 36/Terminus++ Map View 83x50 Zoom Use 0% Tactical HUD 1 Map Filters NONE Filters NONE Steam 1 RUN: b622bf4c-5dc9-437c-904f-820dfddbf987